fUST/lending_fUST_20240828
["ID","MTS","AMOUNT","RATE_DAILY","PERIOD"]
[336435272,1724825447989,-500.0,0.00012328,2]
[336435273,1724825448000,-500.0,0.00012328,2]
[336435274,1724825448012,-500.0,0.00012328,2]
[336435275,1724825448024,-841.18,0.00012328,2]
[336435276,1724825448036,-500.0,0.00012328,2]
[336435277,1724825448047,-904.8,0.00012328,2]
[336435278,1724825448057,-150.27940324,0.00012328,2]
[336435279,1724825448068,-2056.61,0.00012328,2]
[336435280,1724825448078,-500.0,0.00012328,2]
[336435281,1724825448089,-5491.89,0.00012328,2]
[336435282,1724825448100,-833.25,0.00012328,2]
[336435283,1724825448113,-282.82187944,0.00012328,2]
[336435284,1724825448123,-500.0,0.00012328,2]
[336435285,1724825448132,-245.47441959,0.00012328,2]
[336435286,1724825448143,-500.0,0.00012328,2]
[336435287,1724825448154,-512.86,0.00012328,2]
[336435288,1724825448165,-182.83992962,0.00012328,2]
[336435289,1724825448177,-500.0,0.00012328,2]
[336435290,1724825448187,-500.0,0.00012328,2]
[336435291,1724825448197,-432.77902595,0.00012328,2]
[336435292,1724825448206,-510.33263118,0.00012328,2]
[336435293,1724825448216,-500.0,0.00012328,2]
[336435294,1724825448228,-500.0,0.00012328,2]
[336435295,1724825448238,-500.0,0.00012328,2]
[336435296,1724825448247,-500.0,0.00012328,2]
[336435297,1724825448258,-500.0,0.00012328,2]
[336435298,1724825448269,-500.0,0.00012328,2]
[336435299,1724825448281,-500.0,0.00012328,2]
[336435300,1724825448291,-500.0,0.00012328,2]
[336435301,1724825448302,-500.0,0.00012328,2]
[336435302,1724825448313,-500.0,0.00012328,2]
[336435303,1724825448322,-694.27,0.00012328,2]
[336435304,1724825448333,-500.0,0.00012328,2]
[336435305,1724825448344,-541.49,0.00012328,2]
[336435306,1724825448353,-1388.98,0.00012328,2]
[336435307,1724825448363,-500.0,0.00012328,2]
[336435308,1724825448374,-500.0,0.00012328,2]
[336435309,1724825448384,-500.0,0.00012328,2]
[336435310,1724825448394,-500.0,0.00012328,2]
[336435311,1724825448404,-500.0,0.00012328,2]
[336435312,1724825448415,-500.0,0.00012328,2]
[336435313,1724825448426,-500.0,0.00012328,2]
[336435314,1724825448438,-500.0,0.00012328,2]
[336435315,1724825448449,-500.0,0.00012328,2]
[336435316,1724825448460,-500.0,0.00012328,2]
[336435317,1724825448470,-500.0,0.00012328,2]
[336435318,1724825448480,-500.0,0.00012328,2]
[336435319,1724825448490,-500.0,0.00012328,2]
[336435320,1724825448500,-500.0,0.00012328,2]
[336435321,1724825448510,-500.0,0.00012328,2]
[336435322,1724825448521,-500.0,0.00012328,2]
[336435323,1724825448532,-500.0,0.00012328,2]
[336435324,1724825448542,-500.0,0.00012328,2]
[336435325,1724825448551,-500.0,0.00012328,2]
[336435326,1724825448563,-500.0,0.00012328,2]
[336435327,1724825448573,-2928.65,0.00012328,2]
[336435328,1724825448584,-500.0,0.00012328,2]
[336435329,1724825448596,-1128.41,0.00012328,2]
[336435330,1724825448610,-500.0,0.00012328,2]
[336435331,1724825448620,-500.0,0.00012328,2]
[336435332,1724825448631,-500.0,0.00012328,2]
[336435333,1724825448643,-2361.38,0.00012328,2]
[336435334,1724825448654,-933.33,0.00012328,2]
[336435335,1724825448663,-500.0,0.00012419,2]
[336435336,1724825448674,-3935.6100243,0.00012505,2]
[336435337,1724825448686,-2585.89672151,0.00012516,2]
[336435338,1724825448696,-2611.26711056,0.00012516,2]
[336435339,1724825448706,-534.01,0.00012601,2]
[336435340,1724825448717,-500.0,0.00012602,2]
[336435341,1724825448727,-500.0,0.00012602,2]
[336435342,1724825448737,-500.0,0.00012602,2]
[336435343,1724825448747,-500.0,0.00012602,2]
[336435344,1724825448756,-500.0,0.00012602,2]
[336435345,1724825448767,-500.0,0.00012602,2]
[336435346,1724825448777,-500.0,0.00012602,2]
[336435347,1724825448786,-212.37,0.00012602,2]
[336435348,1724825448795,-494.08,0.00012602,2]
[336435349,1724825448805,-500.0,0.00012602,2]
[336435350,1724825448816,-500.0,0.00012602,2]
[336435351,1724825448827,-500.0,0.00012602,2]
[336435352,1724825448839,-502.42,0.00012602,2]
[336435353,1724825448849,-550.59,0.00012602,2]
[336435354,1724825448983,-594.81,0.00012602,2]
[336435355,1724825448994,-597.91,0.00012602,2]
[336435356,1724825449005,-500.0,0.00012602,2]
[336435357,1724825449014,-500.0,0.00012602,2]
[336435358,1724825449024,-500.0,0.00012602,2]
[336435359,1724825449034,-500.0,0.00012602,2]
[336435360,1724825449044,-841.18,0.00012602,2]
[336435361,1724825449054,-500.0,0.00012602,2]
[336435362,1724825449064,-904.8,0.00012602,2]
[336435363,1724825449075,-2056.61,0.00012602,2]
[336435364,1724825449086,-500.0,0.00012602,2]
[336435365,1724825449096,-5491.89,0.00012602,2]
[336435366,1724825449108,-833.25,0.00012602,2]
[336435367,1724825449119,-500.0,0.00012602,2]
[336435368,1724825449130,-500.0,0.00012602,2]
[336435369,1724825449140,-512.86,0.00012602,2]
[336435370,1724825449150,-500.0,0.00012602,2]
[336435371,1724825449160,-500.0,0.00012602,2]
[336435372,1724825449169,-500.0,0.00012602,2]
[336435373,1724825449180,-500.0,0.00012602,2]
[336435374,1724825449190,-500.0,0.00012602,2]
[336435375,1724825449202,-500.0,0.00012602,2]
[336435376,1724825449213,-500.0,0.00012602,2]
[336435377,1724825449224,-500.0,0.00012602,2]
[336435378,1724825449234,-369.98,0.00012602,2]
[336435379,1724825449246,-500.0,0.00012602,2]
[336435380,1724825449257,-500.0,0.00012602,2]
[336435381,1724825449268,-586.89,0.00012602,2]
[336435382,1724825449278,-694.27,0.00012602,2]
[336435383,1724825449289,-500.0,0.00012602,2]
[336435384,1724825449300,-541.49,0.00012602,2]
[336435385,1724825449310,-1388.98,0.00012602,2]
[336435386,1724825449322,-500.0,0.00012602,2]
[336435387,1724825449333,-500.0,0.00012602,2]
[336435388,1724825449344,-500.0,0.00012602,2]
[336435389,1724825449356,-500.0,0.00012602,2]
[336435390,1724825449367,-500.0,0.00012602,2]
[336435391,1724825449378,-500.0,0.00012602,2]
[336435392,1724825449389,-500.0,0.00012602,2]
[336435393,1724825449398,-500.0,0.00012602,2]
[336435394,1724825449408,-500.0,0.00012602,2]
[336435395,1724825449419,-500.0,0.00012602,2]
[336435396,1724825449428,-500.0,0.00012602,2]
[336435397,1724825449438,-396.85,0.00012602,2]
[336435398,1724825449448,-500.0,0.00012602,2]
[336435399,1724825449459,-500.0,0.00012602,2]
[336435400,1724825449469,-500.0,0.00012602,2]
[336435401,1724825449478,-392.2406259,0.00012602,2]
[336435402,1724825449489,-500.0,0.00012602,2]
[336435403,1724825449499,-389.32,0.00012602,2]
[336435404,1724825449509,-2928.65,0.00012602,2]
[336435405,1724825449518,-194.87,0.00012602,2]
[336435406,1724825449528,-1128.41,0.00012602,2]
[336435407,1724825449538,-500.0,0.00012602,2]
[336435408,1724825449548,-500.0,0.00012602,2]
[336435409,1724825449559,-500.0,0.00012602,2]
[336435410,1724825449569,-2361.38,0.00012602,2]
[336435411,1724825449579,-933.33,0.00012602,2]
[336435412,1724825449591,-6468.42503018,0.00012629,2]
[336435413,1724825449605,-2144.73852712,0.00012779,2]
[336435414,1724825449617,-817.98661284,0.00012782,2]
[336435415,1724825449629,-500.0,0.00012876,2]
[336435416,1724825449640,-500.0,0.00012876,2]
[336435417,1724825449652,-475.10908534,0.00012876,2]
[336435418,1724825449662,-500.0,0.00012876,2]
[336435419,1724825449672,-500.0,0.00012876,2]
[336435420,1724825449685,-378.99,0.00012876,2]
[336435421,1724825449695,-500.0,0.00012876,2]
[336435422,1724825449705,-502.42,0.00012876,2]
[336435423,1724825449715,-500.0,0.00012876,2]
[336435424,1724825449725,-371.08219005,0.00012876,2]
[336435425,1724825449734,-500.0,0.00012876,2]
[336435426,1724825449745,-500.0,0.00012876,2]
[336435427,1724825449757,-841.18,0.00012876,2]
[336435428,1724825449768,-500.0,0.00012876,2]
[336435429,1724825449779,-904.8,0.00012876,2]
[336435430,1724825449788,-2056.61,0.00012876,2]
[336435431,1724825449798,-500.0,0.00012876,2]
[336435432,1724825449809,-5491.89,0.00012876,2]
[336435433,1724825449819,-833.25,0.00012876,2]
[336435434,1724825449830,-500.0,0.00012876,2]
[336435435,1724825449840,-500.0,0.00012876,2]
[336435436,1724825449852,-512.86,0.00012876,2]
[336435437,1724825449862,-500.0,0.00012876,2]
[336435438,1724825449873,-500.0,0.00012876,2]
[336435439,1724825449885,-500.0,0.00012876,2]
[336435440,1724825449895,-500.0,0.00012876,2]
[336435441,1724825449904,-500.0,0.00012876,2]
[336435442,1724825449916,-500.0,0.00012876,2]
[336435443,1724825449926,-500.0,0.00012876,2]
[336435444,1724825449937,-500.0,0.00012876,2]
[336435445,1724825449949,-500.0,0.00012876,2]
[336435446,1724825449959,-500.0,0.00012876,2]
[336435447,1724825449970,-694.27,0.00012876,2]
[336435448,1724825449980,-545.64,0.00012876,2]
[336435449,1724825449990,-541.49,0.00012876,2]
[336435450,1724825450000,-1388.98,0.00012876,2]
[336435451,1724825450010,-500.0,0.00012876,2]
[336435452,1724825450019,-282.97427794,0.00012876,2]
[336435453,1724825450029,-500.0,0.00012876,2]
[336435454,1724825450039,-504.26473185,0.00012876,2]
[336435455,1724825450049,-500.0,0.00012876,2]
[336435456,1724825450059,-500.0,0.00012876,2]
[336435457,1724825450069,-500.0,0.00012876,2]
[336435458,1724825450078,-500.0,0.00012876,2]
[336435459,1724825450088,-500.0,0.00012876,2]
[336435460,1724825450097,-274.72498908,0.00012876,2]
[336435461,1724825450107,-500.0,0.00012876,2]
[336435462,1724825450118,-500.0,0.00012876,2]
[336435463,1724825450128,-500.0,0.00012876,2]
[336435464,1724825450140,-500.0,0.00012876,2]
[336435465,1724825450151,-500.0,0.00012876,2]
[336435466,1724825450161,-2928.65,0.00012876,2]
[336435467,1724825450171,-1128.41,0.00012876,2]
[336435468,1724825450180,-500.0,0.00012876,2]
[336435469,1724825450189,-500.0,0.00012876,2]
[336435470,1724825450199,-500.0,0.00012876,2]
[336435471,1724825450209,-2361.38,0.00012876,2]
[336435472,1724825450219,-933.33,0.00012876,2]
[336435473,1724825450229,-934.65211132,0.00012934,2]
[336435474,1724825450239,-314.76735619,0.00012934,2]
[336435475,1724825450250,-154.55950541,0.00012934,2]
[336435476,1724825450259,-366.68045916,0.00012934,2]
[336435477,1724825450269,-2168.18943453,0.00012971,2]
[336435478,1724825450281,-493.77204427,0.00012971,2]
[336435479,1724825450292,-534.01,0.00012988,2]
[336435480,1724825450306,-2282.92421799,0.00012989,3]
[336435481,1724825450316,-2014.30562425,0.00012989,2]
[336435482,1724825450328,-275.10255037,0.00012999,2]
[336435483,1724825450339,-729.31646428,0.00012999,2]
[336435484,1724825450350,-237.24409435,0.00012999,2]
[336435485,1724825450362,-569.97573911,0.00012999,2]
[336435486,1724825450375,-521.48215482,0.00012999,2]
[336435487,1724825450385,-150.112233,0.00013,2]
[336435488,1724825450395,-150.112233,0.00013,2]
[336435489,1724825450407,-863.27824545,0.00013,2]
[336435490,1724825450419,-154.98088165,0.00013025,2]
[336435491,1724825450430,-310.51011385,0.00013051,2]
[336435492,1724825450441,-154.56721181,0.00013051,2]
[336435493,1724825450453,-534.01,0.0001314,2]
[336435494,1724825450465,-500.0,0.0001315,2]
[336435495,1724825450476,-500.0,0.0001315,2]
[336435496,1724825450486,-500.0,0.0001315,2]
[336435497,1724825450496,-500.0,0.0001315,2]
[336435498,1724825450506,-502.42,0.0001315,2]
[336435499,1724825450516,-500.0,0.0001315,2]
[336435500,1724825450526,-500.0,0.0001315,2]
[336435501,1724825450536,-500.0,0.0001315,2]
[336435502,1724825450547,-841.18,0.0001315,2]
[336435503,1724825450556,-500.0,0.0001315,2]
[336435504,1724825450567,-904.8,0.0001315,2]
[336435505,1724825450578,-2056.61,0.0001315,2]
[336435506,1724825450590,-540.00148259,0.0001315,2]
[336435507,1724825450602,-5491.89,0.0001315,2]
[336435508,1724825450626,-833.25,0.0001315,2]
[336435509,1724825450639,-500.0,0.0001315,2]
[336435510,1724825450650,-267.42888694,0.0001315,2]
[336435511,1724825450661,-512.86,0.0001315,2]
[336435512,1724825450672,-500.0,0.0001315,2]
[336435513,1724825450682,-500.0,0.0001315,2]
[336435514,1724825450693,-500.0,0.0001315,2]
[336435515,1724825450706,-500.0,0.0001315,2]
[336435516,1724825450717,-554.37,0.0001315,2]
[336435517,1724825450727,-500.0,0.0001315,2]
[336435518,1724825450736,-500.0,0.0001315,2]
[336435519,1724825450746,-500.0,0.0001315,2]
[336435520,1724825450756,-500.0,0.0001315,2]
[336435521,1724825450767,-500.0,0.0001315,2]
[336435522,1724825450778,-694.27,0.0001315,2]
[336435523,1724825450788,-541.49,0.0001315,2]
[336435524,1724825450797,-1388.98,0.0001315,2]
[336435525,1724825450807,-500.0,0.0001315,2]
[336435526,1724825450817,-500.0,0.0001315,2]
[336435527,1724825450827,-500.0,0.0001315,2]
[336435528,1724825450837,-500.0,0.0001315,2]
[336435529,1724825450846,-500.0,0.0001315,2]
[336435530,1724825450859,-500.0,0.0001315,2]
[336435531,1724825450869,-500.0,0.0001315,2]
[336435532,1724825450879,-396.93,0.0001315,2]
[336435533,1724825450889,-500.0,0.0001315,2]
[336435534,1724825450899,-500.0,0.0001315,2]
[336435535,1724825450909,-500.0,0.0001315,2]
[336435536,1724825450918,-500.0,0.0001315,2]
[336435537,1724825450927,-2928.65,0.0001315,2]
[336435538,1724825450937,-1128.41,0.0001315,2]
[336435539,1724825450946,-294.02,0.0001315,2]
[336435540,1724825450956,-190.35,0.0001315,2]
[336435541,1724825450965,-500.0,0.0001315,2]
[336435542,1724825450975,-2361.38,0.0001315,2]
[336435543,1724825450985,-751.97281741,0.00013193,2]
[336435544,1724825450995,-600.0,0.00013268,2]
[336435545,1724825451005,-600.0,0.00013277,2]
[336435546,1724825451014,-600.0,0.00013287,2]
[336435547,1724825451025,-500.0,0.00013424,2]
[336435548,1724825451034,-500.0,0.00013424,2]
[336435549,1724825451044,-388.36,0.00013424,2]
[336435550,1724825451054,-502.42,0.00013424,2]
[336435551,1724825451064,-500.0,0.00013424,2]
[336435552,1724825451074,-500.0,0.00013424,2]
[336435553,1724825451083,-841.18,0.00013424,2]
[336435554,1724825451093,-500.0,0.00013424,2]
[336435555,1724825451102,-904.8,0.00013424,2]
[336435556,1724825451113,-2056.61,0.00013424,2]
[336435557,1724825451123,-5491.89,0.00013424,2]
[336435558,1724825451132,-833.25,0.00013424,2]
[336435559,1724825451141,-150.89,0.00013424,2]
[336435560,1724825451151,-512.86,0.00013424,2]
[336435561,1724825451160,-228.2752073,0.00013424,2]
[336435562,1724825451170,-500.0,0.00013424,2]
[336435563,1724825451180,-500.0,0.00013424,2]
[336435564,1724825451189,-500.0,0.00013424,2]
[336435565,1724825451198,-500.0,0.00013424,2]
[336435566,1724825451207,-500.0,0.00013424,2]
[336435567,1724825451216,-500.0,0.00013424,2]
[336435568,1724825451225,-500.0,0.00013424,2]
[336435569,1724825451234,-694.27,0.00013424,2]
[336435570,1724825451243,-541.49,0.00013424,2]
[336435571,1724825451253,-1388.98,0.00013424,2]
[336435572,1724825451263,-440.26773225,0.00013424,2]
[336435573,1724825451272,-637.06,0.00013424,2]
[336435574,1724825451282,-500.0,0.00013424,2]
[336435575,1724825451291,-500.0,0.00013424,2]
[336435576,1724825451301,-301.55009696,0.00013424,2]
[336435577,1724825451310,-229.64364103,0.00013424,2]
[336435578,1724825451320,-500.0,0.00013424,2]
[336435579,1724825451330,-500.0,0.00013424,2]
[336435580,1724825451339,-500.0,0.00013424,2]
[336435581,1724825451349,-217.75,0.00013424,2]
[336435582,1724825451358,-500.0,0.00013424,2]
[336435583,1724825451367,-2928.65,0.00013424,2]
[336435584,1724825451377,-1128.41,0.00013424,2]
[336435585,1724825451386,-303.41579405,0.00013424,2]
[336435586,1724825451395,-2361.38,0.00013424,2]
[336435587,1724825451407,-154.81078475,0.00013496,2]
[336435588,1724825451418,-600.0,0.00013515,2]
[336435589,1724825451428,-534.01,0.00013595,2]
[336435590,1724825451439,-3935.6100243,0.00013603,2]
[336435591,1724825451449,-248.01634688,0.00013688,2]
[336435592,1724825451458,-245.77377767,0.00013697,2]
[336435593,1724825451467,-534.01,0.00013697,2]
[336435594,1724825451477,-500.0,0.00013698,2]
[336435595,1724825451486,-500.0,0.00013698,2]
[336435596,1724825451496,-195.5494493,0.00013698,2]
[336435597,1724825451505,-500.0,0.00013698,2]
[336435598,1724825451517,-475.05411845,0.00013698,2]
[336435599,1724825451527,-549.4123996,0.00013698,2]
[336435600,1724825451537,-549.4123996,0.00013698,2]
[336435601,1724825451547,-500.0,0.00013698,2]
[336435602,1724825451557,-549.4123996,0.00013698,2]
[336435603,1724825451567,-549.4123996,0.00013698,2]
[336435604,1724825451580,-549.4123996,0.00013698,2]
[336435605,1724825451590,-549.4123996,0.00013698,2]
[336435606,1724825451602,-564.54675196,0.00013698,2]
[336435607,1724825451613,-549.4123996,0.00013698,2]
[336435608,1724825451623,-549.4123996,0.00013698,2]
[336435609,1724825451633,-549.4123996,0.00013698,2]
[336435610,1724825451642,-549.4123996,0.00013698,2]
[336435611,1724825451652,-549.4123996,0.00013698,2]
[336435612,1724825451664,-549.4123996,0.00013698,2]
[336435613,1724825451675,-549.4123996,0.00013698,2]
[336435614,1724825451688,-549.4123996,0.00013698,2]
[336435615,1724825451697,-549.4123996,0.00013698,2]
[336435616,1724825451706,-549.4123996,0.00013698,2]
[336435617,1724825451715,-549.4123996,0.00013698,2]
[336435618,1724825451724,-549.4123996,0.00013698,2]
[336435619,1724825451733,-1050.92348334,0.00013698,2]
[336435620,1724825451743,-1050.92348334,0.00013698,2]
[336435621,1724825451752,-1050.92348334,0.00013698,2]
[336435622,1724825451761,-1050.92348334,0.00013698,2]
[336435623,1724825451770,-1050.92348334,0.00013698,2]
[336435624,1724825451779,-1050.92348334,0.00013698,2]
[336435625,1724825451789,-1050.92348334,0.00013698,2]
[336435626,1724825451798,-1050.92348334,0.00013698,2]
[336435627,1724825451807,-502.42,0.00013698,2]
[336435628,1724825451816,-500.0,0.00013698,2]
[336435629,1724825451825,-500.0,0.00013698,2]
[336435630,1724825451835,-841.18,0.00013698,2]
[336435631,1724825451844,-500.0,0.00013698,2]
[336435632,1724825451853,-904.8,0.00013698,2]
[336435633,1724825451864,-2056.61,0.00013698,2]
[336435634,1724825451873,-5491.89,0.00013698,2]
[336435635,1724825451882,-833.25,0.00013698,2]
[336435636,1724825451892,-512.86,0.00013698,2]
[336435637,1724825451901,-611.7,0.00013698,2]
[336435638,1724825451911,-500.0,0.00013698,2]
[336435639,1724825451920,-500.0,0.00013698,2]
[336435640,1724825451929,-500.0,0.00013698,2]
[336435641,1724825451939,-524.22,0.00013698,2]
[336435642,1724825451949,-500.0,0.00013698,2]
[336435643,1724825451959,-500.0,0.00013698,2]
[336435644,1724825451968,-694.27,0.00013698,2]
[336435645,1724825451977,-541.49,0.00013698,2]
[336435646,1724825451987,-1388.98,0.00013698,2]
[336435647,1724825451998,-500.0,0.00013698,2]
[336435648,1724825452008,-500.0,0.00013698,2]
[336435649,1724825452017,-500.0,0.00013698,2]
[336435650,1724825452026,-500.0,0.00013698,2]
[336435651,1724825452035,-168.85740919,0.00013698,2]
[336435652,1724825452044,-348.46923334,0.00013698,2]
[336435653,1724825452054,-2928.65,0.00013698,2]
[336435654,1724825452063,-1128.41,0.00013698,2]
[336435655,1724825452073,-2361.38,0.00013698,2]
[336435656,1724825452084,-3000.0,0.00013699,2]
[336435657,1724825452094,-286.720188,0.00013699,2]
[336435658,1724825452104,-500.0,0.00013699,2]
[336435659,1724825452114,-500.0,0.00013699,2]
[336435660,1724825452123,-500.0,0.00013699,2]
[336435661,1724825452132,-363.76989466,0.00013699,2]
[336435662,1724825452141,-500.0,0.00013699,2]
[336435663,1724825452150,-150.112233,0.000137,2]
[336435664,1724825452159,-150.112233,0.000137,2]
[336435665,1724825452169,-281.28550327,0.00013792,2]
[336435666,1724825452179,-500.0,0.00013972,2]
[336435667,1724825452189,-500.0,0.00013972,2]
[336435668,1724825452199,-502.42,0.00013972,2]
[336435669,1724825452210,-500.0,0.00013972,2]
[336435670,1724825452219,-190.65,0.00013972,2]
[336435671,1724825452230,-841.18,0.00013972,2]
[336435672,1724825452240,-349.17,0.00013972,2]
[336435673,1724825452251,-904.8,0.00013972,2]
[336435674,1724825452261,-2056.61,0.00013972,2]
[336435675,1724825452270,-5491.89,0.00013972,2]
[336435676,1724825452279,-833.25,0.00013972,2]
[336435677,1724825452289,-512.86,0.00013972,2]
[336435678,1724825452410,-500.0,0.00013972,2]
[336435679,1724825452421,-331.54,0.00013972,2]
[336435680,1724825452431,-500.0,0.00013972,2]
[336435681,1724825452443,-500.0,0.00013972,2]
[336435682,1724825452453,-500.0,0.00013972,2]
[336435683,1724825452464,-694.27,0.00013972,2]
[336435684,1724825452474,-541.49,0.00013972,2]
[336435685,1724825452485,-1388.98,0.00013972,2]
[336435686,1724825452495,-500.0,0.00013972,2]
[336435687,1724825452507,-630.52,0.00013972,2]
[336435688,1724825452519,-500.0,0.00013972,2]
[336435689,1724825452529,-500.0,0.00013972,2]
[336435690,1724825452540,-2928.65,0.00013972,2]
[336435691,1724825452551,-1128.41,0.00013972,2]
[336435692,1724825452562,-2361.38,0.00013972,2]
[336435693,1724825452571,-236.11350432,0.00014,2]
[336435694,1724825452584,-534.01,0.00014008,2]
[336435695,1724825452594,-324.0,0.0001408,2]
[336435696,1724825452608,-324.0,0.0001408,2]
[336435697,1724825452618,-500.0,0.00014246,2]
[336435698,1724825452628,-500.0,0.00014246,2]
[336435699,1724825452638,-502.42,0.00014246,2]
[336435700,1724825452650,-500.0,0.00014246,2]
[336435701,1724825452661,-841.18,0.00014246,2]
[336435702,1724825452672,-904.8,0.00014246,2]
[336435703,1724825452682,-2056.61,0.00014246,2]
[336435704,1724825452693,-5491.89,0.00014246,2]
[336435705,1724825452702,-833.25,0.00014246,2]
[336435706,1724825452711,-512.86,0.00014246,2]
[336435707,1724825452721,-500.0,0.00014246,2]
[336435708,1724825452730,-439.72,0.00014246,2]
[336435709,1724825452739,-500.0,0.00014246,2]
[336435710,1724825452749,-694.27,0.00014246,2]
[336435711,1724825452758,-541.49,0.00014246,2]
[336435712,1724825452770,-1388.98,0.00014246,2]
[336435713,1724825452781,-569.25,0.00014246,2]
[336435714,1724825452790,-356.56,0.00014246,2]
[336435715,1724825452801,-500.0,0.00014246,2]
[336435716,1724825452810,-2928.65,0.00014246,2]
[336435717,1724825452821,-1128.41,0.00014246,2]
[336435718,1724825452833,-2361.38,0.00014246,2]
[336435719,1724825452843,-750.0,0.00014247,2]
[336435720,1724825452855,-150.112233,0.000144,2]
[336435721,1724825452864,-150.112233,0.000145,2]
[336435722,1724825452875,-500.0,0.0001452,2]
[336435723,1724825452886,-271.80165431,0.0001452,2]
[336435724,1724825452895,-502.42,0.0001452,2]
[336435725,1724825452905,-500.0,0.0001452,2]
[336435726,1724825452917,-841.18,0.0001452,2]
[336435727,1724825452928,-904.8,0.0001452,2]
[336435728,1724825452937,-2056.61,0.0001452,2]
[336435729,1724825452946,-2218.71435172,0.0001452,2]
[336435730,1724825453078,-3273.17564828,0.0001452,2]
[336435731,1724825453089,-833.25,0.0001452,2]
[336435732,1724825453100,-512.86,0.0001452,2]
[336435733,1724825453113,-531.73,0.0001452,2]
[336435734,1724825453123,-465.71,0.0001452,2]
[336435735,1724825453134,-694.27,0.0001452,2]
[336435736,1724825453144,-541.49,0.0001452,2]
[336435737,1724825453154,-170.81905272,0.0001452,2]
[336435738,1724825453284,-3094.87417801,0.00012971,2]
[336435739,1724825453295,-166.89815385,0.00012991,2]
[336435740,1724825453306,-933.33,0.0001315,2]
[336435741,1724825453318,-933.33,0.00013424,2]
[336435742,1724825453331,-2129.87511377,0.00013477,2]
[336435743,1724825453343,-933.33,0.00013698,2]
[336435744,1724825453354,-933.33,0.00013972,2]
[336435745,1724825453365,-933.33,0.00014246,2]
[336435746,1724825453375,-1218.16094728,0.0001452,2]
[336435747,1724825453386,-500.0,0.0001452,2]
[336435748,1724825453397,-2928.65,0.0001452,2]
[336435749,1724825453407,-1128.41,0.0001452,2]
[336435750,1724825453419,-2361.38,0.0001452,2]
[336435751,1724825453430,-5583.70176656,0.00014582,2]
[336435752,1724825453440,-3935.6100243,0.00014702,2]
[336435753,1724825453451,-534.01,0.00014793,2]
[336435754,1724825453463,-500.0,0.00014794,2]
[336435755,1724825453473,-502.42,0.00014794,2]
[336435756,1724825453485,-500.0,0.00014794,2]
[336435757,1724825453497,-841.18,0.00014794,2]
[336435758,1724825453508,-904.8,0.00014794,2]
[336435759,1724825453517,-2056.61,0.00014794,2]
[336435760,1724825453527,-5491.89,0.00014794,2]
[336435761,1724825453537,-833.25,0.00014794,2]
[336435762,1724825453546,-512.86,0.00014794,2]
[336435763,1724825453558,-694.27,0.00014794,2]
[336435764,1724825453567,-541.49,0.00014794,2]
[336435765,1724825453577,-1388.98,0.00014794,2]
[336435766,1724825453589,-500.0,0.00014794,2]
[336435767,1724825453599,-2928.65,0.00014794,2]
[336435768,1724825453613,-1128.41,0.00014794,2]
[336435769,1724825453623,-2361.38,0.00014794,2]
[336435770,1724825453633,-5583.70176656,0.00014801,2]
[336435771,1724825453644,-500.0,0.00015068,2]